bitfinex/quotes_ETHUSD_20220213
["timestamp","ask_amount","ask_price","bid_price","bid_amount"]
[1644732679177,1.45962605,2912.4,2912.2,0.50854607]
[1644732680177,1.45962605,2912.4,2912.2,0.49846038]
[1644732680377,1.45962605,2912.4,2912.2,0.50854607]
[1644732681180,1.45962605,2912.4,2912.2,0.50773412]
[1644732681383,0.00397979,2912.7,2912.2,0.49764843]
[1644732681584,0.00397979,2912.7,2912.2,0.50773412]
[1644732682626,0.00397979,2912.7,2912.2,0.49764843]
[1644732682824,0.00397979,2912.7,2912.2,0.50773443]
[1644732683630,0.00397979,2912.7,2912.2,0.49764843]
[1644732684133,0.00397979,2912.7,2912.2,0.50773443]
[1644732684728,0.00397979,2912.7,2912.2,0.80773443]
[1644732684929,0.00397979,2912.7,2912.2,0.49764843]
[1644732685130,0.00397979,2912.7,2912.2,0.50773443]
[1644732686030,0.00397979,2912.7,2912.2,0.49764843]
[1644732686282,0.00397979,2912.7,2912.2,0.50773443]
[1644732686469,0.02243503,2912.6,2912.2,0.80773443]
[1644732686674,0.02243503,2912.6,2912.2,0.50773443]
[1644732687273,0.02243503,2912.6,2912.2,0.49764843]
[1644732687470,0.02243503,2912.6,2912.2,0.50773432]
[1644732688473,0.02243503,2912.6,2912.2,0.49764843]
[1644732688676,0.02243503,2912.6,2912.2,0.50773432]
[1644732689678,0.02243503,2912.6,2912.2,0.49764843]
[1644732689877,0.02243503,2912.6,2912.2,0.50773432]
[1644732690925,0.02243503,2912.6,2912.2,0.49764843]
[1644732691125,0.02243503,2912.6,2912.2,0.50773432]
[1644732692124,0.02243503,2912.6,2912.2,0.49764843]
[1644732692324,0.02243503,2912.6,2912.2,0.50773432]
[1644732693330,0.02243503,2912.6,2912.2,0.49764843]
[1644732693528,0.02243503,2912.6,2912.2,0.50773432]
[1644732693791,0.02243503,2912.6,2912.2,0.80773432]
[1644732694187,0.02243503,2912.6,2912.2,1.10773432]
[1644732694590,0.02243503,2912.6,2912.2,2.32294843]
[1644732694788,0.02243503,2912.6,2912.2,2.33303432]
[1644732695788,0.02243503,2912.6,2912.2,2.32294843]
[1644732695990,0.02243503,2912.6,2912.3,0.1716]
[1644732696189,0.02243503,2912.6,2912.4,0.496]
[1644732696389,0.02243503,2912.6,2912.4,1.65408]
[1644732696589,0.02243503,2912.6,2912.4,1.95408]
[1644732696789,0.02243503,2912.6,2912.4,2.95408]
[1644732696991,0.02243503,2912.6,2912.4,1.95408]
[1644732697195,0.02243503,2912.6,2912.5,1.0]
[1644732697393,0.02243503,2912.6,2912.5,0.796]
[1644732698930,0.02158204,2912.6,2912.5,0.796]
[1644732699735,1.48197314,2912.6,2912.5,0.796]
[1644732700131,0.02158204,2912.6,2912.5,0.796]
[1644732700631,1.48197229,2912.6,2912.5,0.796]
[1644732700832,1.48197229,2912.6,2912.5,0.9676]
[1644732701034,1.48197229,2912.6,2912.5,0.796]
[1644732701284,8.394e-05,2912.8,2912.6,4.15]
[1644732701483,0.00397979,2913.3,2912.8,4.15]
[1644732701680,5.17574362,2914.2,2912.8,4.15]
[1644732701681,0.00397979,2913.5,2912.9,1.35383]
[1644732701878,0.65379663,2913.8,2912.9,1.35383]
[1644732701879,0.65379663,2913.7,2913.0,1.1422]
[1644732702079,0.00397979,2913.6,2913.1,0.496]
[1644732702581,0.00397979,2913.6,2913.2,1.71564]
[1644732702780,0.65379663,2913.8,2913.3,0.496]
[1644732702977,0.00397979,2913.7,2913.3,0.496]
[1644732703179,0.65777642,2913.8,2913.3,0.00800001]
[1644732703379,0.65777642,2913.8,2913.4,0.496]
[1644732704278,0.00397979,2913.8,2913.4,0.496]
[1644732704479,0.65777642,2913.8,2913.4,0.496]
[1644732704778,0.00397979,2913.8,2913.4,0.496]
[1644732705233,0.65777642,2913.8,2913.4,0.496]
[1644732705635,0.0106982,2913.7,2913.4,0.496]
[1644732706635,0.00397979,2913.8,2913.4,0.496]
[1644732706835,0.01069827,2913.7,2913.4,0.496]
[1644732707840,0.00397979,2913.8,2913.4,0.496]
[1644732708041,0.01049767,2913.7,2913.4,0.496]
[1644732709080,0.00397979,2913.8,2913.4,0.496]
[1644732709278,0.01049767,2913.7,2913.4,0.496]
[1644732710182,0.65777642,2914.0,2913.4,0.496]
[1644732710377,0.01049767,2913.7,2913.4,0.496]
[1644732711177,0.01049767,2913.7,2913.6,0.029808]
[1644732711377,0.65777642,2914.0,2913.6,0.029808]
[1644732711577,0.0101431,2913.7,2913.6,0.029808]
[1644732712623,0.65777642,2914.0,2913.6,0.029808]
[1644732712827,0.01014299,2913.8,2913.6,0.029808]
[1644732713829,0.65777642,2914.0,2913.6,0.029808]
[1644732714028,0.01014293,2913.8,2913.6,0.029808]
[1644732714831,0.65379663,2913.9,2913.6,0.029808]
[1644732715130,0.01016548,2913.8,2913.6,0.029808]
[1644732716134,0.00397979,2913.9,2913.6,0.029808]
[1644732716377,0.01016548,2913.8,2913.6,0.02816146]
[1644732717276,0.65777642,2913.9,2913.6,0.02816146]
[1644732717476,0.01016548,2913.8,2913.6,0.02816146]
[1644732718580,0.00397979,2914.1,2913.6,0.02816146]
[1644732718779,0.0101639,2913.8,2913.6,0.02816146]
[1644732719682,0.17547979,2914.1,2913.6,0.52416146]
[1644732719882,0.0101639,2913.8,2913.6,1.48356146]
[1644732720132,0.0101639,2913.8,2913.7,0.1716]
[1644732720328,0.0101639,2913.8,2913.7,0.6676]
[1644732720734,0.0101639,2913.8,2913.7,0.9676]
[1644732720929,0.17547979,2914.1,2913.7,0.9676]
[1644732721130,0.17547979,2914.1,2913.8,0.88259772]
[1644732721131,0.01016384,2913.9,2913.8,0.88259772]
[1644732721430,1.47011588,2913.9,2913.8,1.67859772]
[1644732721832,1.47011588,2913.9,2913.8,2.67859772]
[1644732722032,1.45995204,2913.9,2913.8,2.67859772]
[1644732722333,1.4701159,2914.0,2913.8,2.67859772]
[1644732722534,1.4701159,2914.0,2913.9,0.1715]
[1644732722735,1.4701159,2914.0,2913.9,0.6675]
[1644732723137,1.4701159,2914.0,2913.8,1.59278067]
[1644732723434,1.45995204,2914.0,2913.9,0.496]
[1644732725281,0.18564353,2914.1,2913.9,0.796]
[1644732725479,0.18166374,2914.1,2914.0,0.83807294]
[1644732725683,1.63134887,2914.1,2914.0,1.63407294]
[1644732725878,1.64151251,2914.1,2914.0,1.63407294]
[1644732726878,1.63134887,2914.1,2914.0,1.63407294]
[1644732729229,0.1715,2914.1,2914.0,1.63407294]
[1644732731271,0.18689681,2914.1,2914.0,1.63572037]
[1644732735624,0.01539681,2914.1,2914.0,1.63572037]
[1644732736030,1.47526179,2914.1,2914.0,1.63572037]
[1644732736227,0.01539681,2914.1,2914.0,1.63572037]
[1644732736827,1.45985683,2914.1,2914.0,1.63572037]
[1644732737729,0.00397979,2914.7,2914.1,4.1]
[1644732737933,0.00397979,2914.7,2914.2,2.35352]
[1644732738129,0.01539681,2914.8,2914.2,9.15752]
[1644732738332,0.01539681,2914.8,2914.2,13.07407876]
[1644732739176,0.01016304,2914.6,2914.2,13.07407876]
[1644732739780,0.01016304,2914.6,2914.3,1.71463]
[1644732739978,0.01016304,2914.6,2914.4,0.496]
[1644732740178,0.01539681,2914.8,2914.4,0.796]
[1644732740477,0.0101631,2914.6,2914.4,1.796]
[1644732741280,0.00397979,2915.4,2914.4,1.796]
[1644732741480,0.00397979,2915.4,2914.7,0.85738]
[1644732741780,0.00397979,2915.4,2914.8,0.496]
[1644732742726,0.01016233,2915.2,2914.8,0.496]
[1644732743123,0.01016233,2915.2,2914.7,1.46538001]
[1644732743325,0.01016233,2915.2,2914.8,0.496]
[1644732743730,0.65379663,2915.4,2914.8,0.496]
[1644732743932,0.0101624,2915.1,2914.4,1.496]
[1644732744132,0.93950424,2915.0,2914.4,1.496]
[1644732744329,0.00397979,2914.9,2914.4,1.496]
[1644732745129,0.01016281,2914.8,2914.4,1.496]
[1644732745429,0.01016281,2914.8,2914.4,1.796]
[1644732746295,0.7476,2914.8,2914.2,3.1488]
[1644732746490,3.71995094,2914.7,2914.2,3.1488]
[1644732746678,3.73011381,2914.7,2913.9,1.2099]
[1644732746882,3.73011381,2914.7,2913.5,0.25]
[1644732747278,3.71995094,2914.7,2913.5,0.25]
[1644732747482,3.71995094,2914.7,2913.6,2.54011405]
[1644732747683,0.01016326,2914.3,2913.6,2.84011405]
[1644732747884,0.01016326,2914.3,2913.7,1.0]
[1644732748083,1.18031831,2914.1,2913.7,1.0]
[1644732748286,1.18031831,2914.1,2913.1,0.1715]
[1644732748287,2.2944981,2914.1,2913.1,0.1715]
[1644732748488,3.6716,2914.0,2913.1,0.1715]
[1644732748683,0.00397979,2913.9,2913.1,0.1715]
[1644732748892,0.1716,2913.8,2913.1,0.1715]
[1644732749087,0.00397979,2913.7,2913.1,0.1715]
[1644732749489,0.17557979,2913.9,2913.1,0.1715]
[1644732750131,0.01016414,2913.5,2913.1,0.1715]
[1644732750331,0.01016414,2913.5,2912.8,0.25]
[1644732750332,1.04590389,2913.2,2912.8,0.25]
[1644732750531,1.04590389,2913.2,2912.5,0.01016793]
[1644732750532,4.34253639,2913.1,2912.5,0.01016793]
[1644732750930,4.34253639,2913.1,2911.9,0.25]
[1644732751133,0.3167,2913.3,2912.1,0.85821]
[1644732751330,0.0101651,2912.9,2912.5,0.01016679]
[1644732752129,1.00914064,2913.3,2912.2,1.096]
[1644732752332,0.01016487,2912.9,2912.5,0.01016656]
[1644732753331,1.00914064,2913.3,2912.2,1.3542]
[1644732753530,0.1716,2913.2,2912.2,1.3542]
[1644732753785,0.01016487,2912.9,2912.5,0.01016656]
[1644732754583,0.1716,2913.2,2912.2,1.9542]
[1644732754786,0.01016494,2912.9,2912.5,0.01016663]
[1644732755885,0.1716,2913.2,2912.2,1.9042]
[1644732756085,0.01016494,2912.9,2912.5,0.01016663]
[1644732756289,1.02866494,2912.9,2912.5,0.01016663]
[1644732756486,1.02866494,2912.9,2912.6,0.00110435]
[1644732756487,3.85505773,2912.8,2912.6,0.00110435]
[1644732758130,0.01629627,2912.8,2912.6,0.00110435]
[1644732759535,0.18789627,2912.8,2912.6,0.00110435]
[1644732759735,0.01629627,2912.8,2912.6,0.00110435]
[1644732760936,0.01629627,2912.8,2912.5,0.01017217]
[1644732761893,0.01629627,2912.8,2911.6,1.73819997]
[1644732762088,0.01629627,2912.8,2912.5,0.01017205]
[1644732763087,0.01629627,2912.8,2911.6,1.98819997]
[1644732763288,0.01629627,2912.8,2912.5,0.01017189]
[1644732764191,0.01629627,2912.8,2911.9,0.85829]
[1644732764394,0.01629627,2912.8,2912.5,0.01017189]
[1644732765531,0.01629627,2912.8,2911.6,1.98819997]
[1644732765732,0.01629627,2912.8,2912.5,0.01017189]
[1644732766733,0.01629627,2912.8,2911.6,3.34257997]
[1644732766938,0.01629627,2912.8,2912.5,0.01017209]
[1644732767733,0.01629627,2912.8,2911.6,3.34257997]
[1644732768134,0.01629627,2912.8,2912.5,0.01017209]
[1644732769084,0.01629627,2912.8,2911.6,3.34257997]
[1644732769283,0.01629627,2912.8,2912.5,0.01017209]
[1644732770283,0.01629627,2912.8,2911.6,3.34257997]
[1644732770584,0.01629627,2912.8,2912.5,0.01017205]
[1644732771385,0.01629627,2912.8,2911.6,2.74257997]
[1644732771593,0.01629627,2912.8,2912.5,0.01017205]
[1644732771594,0.1716,2912.7,2912.5,0.01017205]
[1644732771890,0.1716,2912.7,2911.9,0.04069566]
[1644732771891,0.02034409,2912.4,2911.9,0.04069566]
[1644732772733,0.02034409,2912.4,2911.3,4.48919133]
[1644732773131,0.02034409,2912.4,2911.4,1.0]
[1644732774135,0.02034409,2912.4,2911.8,0.00345701]
[1644732774937,0.02034409,2912.4,2911.4,1.0]
[1644732775337,0.02034409,2912.4,2912.0,0.01018442]
[1644732776139,0.02034409,2912.4,2911.4,1.0]
[1644732776381,0.01617744,2912.3,2912.1,0.0101843]
[1644732777482,0.01617744,2912.3,2911.4,1.0]
[1644732777683,0.01617744,2912.3,2912.1,0.01016217]
[1644732778082,1.14081154,2912.3,2912.1,0.01016217]
[1644732778682,0.01617744,2912.3,2911.4,1.0]
[1644732778887,0.01617744,2912.3,2912.1,0.01016217]
[1644732779889,0.01617744,2912.3,2911.4,1.0]
[1644732779890,0.01617744,2912.3,2911.4,1.3]
[1644732780133,0.01617744,2912.3,2912.1,0.01016217]
[1644732781032,0.01617744,2912.3,2911.3,4.48919133]
[1644732781233,0.01617744,2912.3,2912.1,0.01017464]
[1644732782332,0.01617744,2912.3,2911.4,1.0]
[1644732782537,0.01617744,2912.3,2912.1,0.01017464]
[1644732783535,0.01617744,2912.3,2911.4,1.0]
[1644732783778,0.01617744,2912.3,2912.1,0.01017464]
[1644732784583,0.01617744,2912.3,2911.4,1.0]
[1644732784984,0.01617744,2912.3,2912.1,0.01017237]
[1644732785290,3.27854353,2912.3,2912.1,0.01017237]
[1644732785884,3.27854353,2912.3,2911.3,0.00299133]
[1644732786087,0.1716,2912.2,2912.1,0.01017237]
[1644732786288,3.41522527,2912.2,2912.1,0.01017237]
[1644732787087,3.41522527,2912.2,2911.1,0.00299133]
[1644732787288,3.24362527,2912.2,2912.0,0.01017243]
[1644732787533,0.18777744,2912.3,2912.0,0.01017243]
[1644732787937,0.18777744,2912.3,2911.2,1.13619133]
[1644732787938,0.18777744,2912.3,2911.2,1.08705959]
[1644732788938,3.69506182,2912.3,2911.2,1.08705959]
[1644732789739,3.69506182,2912.3,2911.5,0.00347634]
[1644732790638,1.46084961,2912.2,2911.2,1.08705959]
[1644732790839,0.01021024,2912.0,2911.5,0.01021231]
[1644732791487,0.01021024,2912.0,2911.6,0.496]
[1644732791787,0.01615367,2912.2,2911.8,6.204]
[1644732791983,0.01615367,2912.2,2911.9,0.496]
[1644732792180,0.01615367,2912.2,2911.9,1.496]
[1644732792382,0.01615367,2912.2,2911.9,2.26809129]
[1644732792581,0.01615367,2912.2,2912.0,0.17209129]
[1644732792780,0.01615367,2912.2,2912.1,0.496]
[1644732793180,0.01615367,2912.2,2912.1,0.66809129]
[1644732793380,0.02632421,2912.2,2912.1,0.66809129]
[1644732794185,0.01615367,2912.2,2912.1,0.66809129]
[1644732794784,0.01615367,2912.2,2912.1,0.96809129]
[1644732795234,0.01615367,2912.2,2912.1,1.26809129]
[1644732796135,0.01615367,2912.2,2912.1,0.96809129]
[1644732796335,0.01615367,2912.2,2912.1,0.66809129]
[1644732801592,0.01615367,2912.2,2912.1,0.496]
[1644732806680,0.01615367,2912.2,2912.1,0.796]
[1644732806882,0.01615367,2912.2,2912.1,0.496]
[1644732808081,1.19460476,2912.2,2912.1,0.496]
[1644732809088,4.86294514,2912.2,2911.7,3.1423]
[1644732809291,1.63227863,2912.1,2911.5,1.69447584]
[1644732809489,1.63227863,2912.1,2911.5,1.19847584]
[1644732809490,5.34501245,2912.0,2911.5,1.19847584]
[1644732809689,1.63128354,2911.9,2911.5,1.19847584]
[1644732809887,4.89836847,2911.8,2911.5,1.1883]
[1644732810135,3.90579956,2912.1,2911.4,0.00298717]
[1644732810336,0.01017337,2911.9,2911.5,0.01017491]
[1644732810536,1.46089282,2911.8,2911.5,0.01017491]
[1644732811144,1.46089282,2911.8,2911.4,0.00298717]
[1644732811347,1.46089282,2911.8,2911.5,0.01017468]
[1644732811348,0.01017349,2911.8,2911.5,0.01017468]
[1644732812337,3.83640099,2912.1,2911.4,0.00298717]
[1644732812539,0.01017349,2911.8,2911.5,0.01017468]
[1644732813439,3.87265583,2912.1,2911.4,0.00298717]
[1644732813638,0.01017349,2911.8,2911.5,0.01017468]
[1644732814687,3.90885596,2912.1,2911.4,0.00298717]
[1644732814888,0.01017353,2911.8,2911.5,0.01017472]
[1644732815989,3.70906546,2912.1,2911.4,0.00298717]
[1644732816190,0.01017353,2911.8,2911.5,0.01017472]
[1644732816988,0.01610613,2912.0,2911.4,0.00298717]
[1644732817190,1.46085264,2911.9,2911.4,0.00298717]
[1644732817389,0.01017353,2911.8,2911.5,0.01017472]
[1644732818233,0.01610613,2912.0,2911.4,0.00298717]
[1644732818434,1.46083998,2911.9,2911.4,0.00298717]
[1644732818634,0.01017353,2911.8,2911.5,0.01017472]
[1644732819439,0.01610613,2912.0,2911.4,0.00298717]
[1644732819639,0.01610613,2912.0,2911.5,0.01017472]
[1644732819640,0.01017353,2911.8,2911.5,0.01017472]
[1644732819840,0.01017353,2911.8,2911.5,0.00858112]
[1644732820640,0.01610613,2912.0,2911.4,0.00298717]
[1644732820843,1.46085828,2911.9,2911.4,0.00298717]
[1644732821785,0.03337422,2911.7,2911.4,0.00298717]
[1644732822081,0.03337422,2911.7,2911.4,0.00638963]
[1644732822682,0.03337422,2911.7,2911.4,0.00340246]
[1644732822883,0.03337422,2911.7,2911.4,0.00638996]
[1644732823083,0.03337422,2911.7,2911.4,0.0029875]
[1644732823286,0.04354891,2911.7,2911.5,0.66809129]
[1644732823489,0.04354891,2911.7,2911.5,1.82439129]
[1644732823686,0.04354891,2911.7,2911.6,0.17209129]
[1644732823889,0.04354891,2911.7,2911.6,0.66809129]
[1644732824294,0.03337422,2911.7,2911.6,0.66809129]
[1644732826334,0.03337422,2911.7,2911.6,1.17569006]
[1644732826735,0.03337422,2911.7,2911.6,2.17569006]
[1644732828138,0.03337422,2911.7,2911.6,2.34739006]
[1644732829292,0.01017425,2911.8,2911.7,4.15]
[1644732829504,0.02034409,2912.4,2911.8,4.15]
[1644732829692,0.02034409,2912.4,2912.1,6.204]
[1644732829892,0.02034409,2912.4,2912.3,6.204]
[1644732830091,0.02034409,2912.4,2912.3,7.7075]
[1644732830293,3.6716,2913.3,2912.4,3.2]
[1644732830492,1.46035633,2913.2,2912.7,0.85801]
[1644732830693,1.46035633,2913.1,2912.8,0.496]
[1644732830893,3.6716,2913.7,2912.8,0.496]
[1644732831094,1.46034789,2913.6,2912.8,0.496]
[1644732831293,1.23561322,2913.5,2912.8,0.496]
[1644732831495,1.46034789,2913.4,2912.8,0.66809129]
[1644732831695,0.00677053,2913.3,2912.8,0.66809129]
[1644732832097,0.00677053,2913.3,2912.8,0.96809129]
[1644732832733,1.06401322,2913.5,2912.8,0.66809129]
[1644732832734,1.4603133,2913.2,2912.8,0.66809129]
[1644732832935,0.01070946,2913.2,2912.8,0.66809129]
[1644732833934,1.06401322,2913.5,2912.8,0.66809129]
[1644732834136,0.01070952,2913.1,2912.8,0.66809129]
[1644732835039,1.06401322,2913.5,2912.8,0.66809129]
[1644732835237,0.01070959,2913.1,2912.8,0.66809129]
[1644732836291,0.1716,2913.4,2913.0,0.03301901]
[1644732836581,0.01070959,2913.1,2913.0,0.03301901]
[1644732836982,0.01070959,2913.1,2913.0,0.52901901]
[1644732837683,0.1716,2913.4,2913.0,0.52901901]
[1644732837884,1.46029125,2913.3,2913.0,0.82901901]
[1644732838082,1.06401322,2913.5,2913.0,0.52901901]
[1644732838283,1.4602864,2913.4,2913.0,0.52901901]
[1644732839793,1.4602864,2913.4,2913.0,0.82901901]
[1644732840038,0.01071463,2913.3,2913.0,3.1263803]
[1644732840238,0.04285065,2913.9,2913.6,0.17927506]
[1644732840437,0.04285065,2913.9,2913.7,0.496]
[1644732841037,1.11754969,2914.3,2913.7,1.35366]
[1644732841238,1.45995865,2914.2,2913.7,0.496]
[1644732841437,0.59380316,2913.6,2913.3,0.13819997]
[1644732841635,0.59380316,2913.6,2913.4,0.496]
[1644732841834,1.46014337,2913.5,2913.4,0.496]
[1644732844989,1.18508488,2913.4,2913.2,0.03269838]
[1644732845194,3.5617045,2913.3,2913.2,0.03269838]
[1644732845593,5.02184787,2913.3,2913.2,0.03269838]
[1644732845985,4.9140285,2913.3,2913.2,0.03269838]
[1644732846388,4.74528571,2913.3,2913.2,0.03269838]
[1644732846586,4.74528571,2913.3,2912.8,0.03282069]
[1644732846785,1.46014337,2913.2,2912.8,0.03282069]
[1644732847632,3.27995732,2913.1,2912.8,0.03282069]
[1644732847836,3.50150706,2913.3,2912.8,0.03282069]
[1644732848033,1.46039925,2913.2,2912.8,0.03282069]
[1644732848233,1.63199925,2913.2,2912.8,0.03282069]
[1644732848435,1.46039925,2913.1,2912.8,0.03282069]
[1644732851291,0.1716,2913.2,2912.4,0.01071754]
[1644732851683,0.1716,2913.3,2912.4,0.01071754]
[1644732851887,1.46035958,2913.2,2912.2,2.5562]
[1644732852091,1.46035958,2913.2,2912.4,0.01071719]
[1644732853090,1.46035958,2913.2,2912.2,3.1562]
[1644732853287,1.46035958,2913.2,2912.4,0.01071719]
[1644732854389,1.46035958,2913.2,2912.2,1.698]
[1644732854590,1.46035958,2913.2,2912.4,0.01071719]
[1644732855433,1.46035958,2913.2,2912.2,3.1562]
[1644732855835,1.46035958,2913.2,2912.4,0.01071719]
[1644732856635,1.49771096,2913.2,2912.2,3.1562]
[1644732856841,0.03735138,2913.2,2912.2,2.298]
[1644732857136,0.03735138,2913.2,2912.4,0.01071719]
[1644732857538,0.03735138,2913.2,2912.5,0.496]
[1644732859585,1.46032124,2913.1,2912.5,0.496]
[1644732861187,0.03735138,2913.2,2912.5,0.496]
[1644732861590,1.46032187,2913.1,2912.5,0.496]
[1644732862387,1.63192187,2913.1,2912.5,0.496]
[1644732862633,1.46032187,2913.0,2912.5,0.496]
[1644732865441,1.46032187,2913.0,2912.4,0.00395886]
[1644732865442,3.40859986,2912.9,2912.4,0.00395886]
[1644732865642,1.46032187,2912.8,2912.4,0.00395886]
[1644732865843,0.89729183,2912.2,2912.1,0.25]
[1644732866046,0.89729183,2912.2,2912.0,0.01583747]
[1644732866293,0.00791771,2912.3,2911.8,0.1745875]
[1644732867484,0.00791771,2912.3,2911.8,0.0029875]
[1644732867687,0.00791771,2912.3,2911.9,0.01072386]
[1644732868086,1.46065299,2912.2,2911.9,0.01072386]
[1644732868690,1.46065299,2912.2,2911.6,0.0029875]
[1644732868891,1.46065299,2912.2,2911.9,0.01072386]
[1644732870034,1.46065299,2912.2,2911.6,0.0029875]
[1644732870234,1.46065299,2912.2,2911.9,0.01072386]
[1644732871133,1.46065299,2912.2,2911.6,0.0029875]
[1644732871337,1.46065299,2912.2,2911.9,0.01072386]
[1644732872339,1.46065299,2912.2,2911.6,0.0029875]
[1644732872540,1.46065299,2912.2,2911.9,0.01072386]
[1644732873341,0.2163666,2912.3,2911.9,0.50672386]
[1644732873540,0.2163666,2912.3,2911.9,0.496]
[1644732873784,0.2163666,2912.3,2911.9,0.50672386]
[1644732874387,0.2163666,2912.3,2911.9,0.80672386]
[1644732874788,0.2163666,2912.3,2911.9,0.496]
[1644732874989,0.2163666,2912.3,2912.0,0.01072379]
[1644732875892,0.2163666,2912.3,2911.9,1.35429]
[1644732876091,0.2163666,2912.3,2912.0,0.01072373]
[1644732877094,0.2163666,2912.3,2912.1,0.6676]
[1644732877293,0.2163666,2912.3,2912.1,3.38377]
[1644732877536,0.2163666,2912.3,2912.1,3.98377]
[1644732878540,0.2163666,2912.3,2912.1,3.22289366]
[1644732878943,0.0447666,2912.3,2912.2,0.1716]
[1644732879147,0.0447666,2912.3,2912.2,0.6676]
[1644732879342,0.0447666,2912.3,2912.2,0.9676]
[1644732879745,0.0447666,2912.3,2912.2,0.796]
[1644732879946,0.0447666,2912.3,2912.2,0.9676]
[1644732880546,0.00791771,2912.3,2912.2,0.9676]
[1644732881146,1.24759979,2913.6,2912.2,0.9676]
[1644732881147,0.01071988,2913.1,2912.6,0.85799]
[1644732881391,0.01071988,2913.1,2912.7,0.496]
[1644732881993,1.52026889,2913.6,2912.7,0.496]
[1644732882193,0.01072139,2913.1,2912.7,0.496]
[1644732883195,1.52026889,2913.6,2912.7,0.496]
[1644732883196,1.46027756,2913.0,2912.7,0.496]
[1644732883398,0.01072139,2913.1,2912.7,0.496]
[1644732883594,1.46031178,2913.0,2912.7,0.496]
[1644732884597,1.46031178,2912.9,2912.7,0.496]
[1644732885041,0.01072127,2913.1,2912.7,0.496]
[1644732885243,1.46033814,2913.0,2912.7,0.496]
[1644732885649,1.46033814,2912.9,2912.7,0.496]
[1644732885846,1.46033814,2912.8,2912.7,0.496]
[1644732886046,1.46033814,2913.0,2912.7,0.496]
[1644732886253,1.46033814,2913.0,2912.8,0.03990266]
[1644732886449,1.46033814,2913.0,2912.8,0.53590266]
[1644732886849,1.46033814,2912.9,2912.8,0.53590266]
[1644732887057,3.45186145,2913.5,2912.8,0.53590266]
[1644732887058,0.01072139,2913.1,2912.8,0.53590266]
[1644732887251,1.46033814,2913.0,2912.8,0.53590266]
[1644732888052,1.46033814,2912.9,2912.8,0.53590266]
[1644732888452,1.46033814,2913.0,2912.8,0.53590266]
[1644732888651,1.46033814,2912.9,2912.8,0.53590266]
[1644732888898,1.46033814,2913.0,2912.8,0.53590266]
[1644732889100,4.49164662,2913.5,2912.8,0.53590266]
[1644732889101,1.46033814,2912.9,2912.8,0.53590266]
[1644732889501,0.01072127,2913.1,2912.8,0.53590266]
[1644732889703,1.46033814,2912.9,2912.8,0.53590266]
[1644732890001,1.46033814,2913.0,2912.8,0.53590266]
[1644732890198,1.46033814,2912.9,2912.8,0.53590266]
[1644732890397,0.1716,2913.4,2912.8,0.53590266]
[1644732890398,1.46033814,2913.0,2912.8,0.53590266]
[1644732890600,1.46033814,2912.9,2912.8,0.53590266]
[1644732890797,1.46033814,2913.0,2912.8,0.53590266]
[1644732891601,1.46033814,2913.0,2912.8,0.496]
[1644732891801,1.46033814,2912.9,2912.8,0.496]
[1644732892207,1.46033814,2913.0,2912.8,0.496]
[1644732892403,1.46033814,2912.9,2912.8,0.496]
[1644732892634,1.46033814,2913.0,2912.8,0.496]
[1644732892834,0.1716,2913.5,2912.8,0.496]
[1644732892835,1.46033814,2912.9,2912.8,0.496]
[1644732893234,1.46033814,2913.0,2912.8,0.496]
[1644732894039,1.46033814,2912.9,2912.8,0.496]
[1644732895138,1.46033814,2913.0,2912.8,0.496]
[1644732895339,2.34566552,2913.6,2912.8,0.496]
[1644732895340,1.46033814,2912.9,2912.8,0.496]
[1644732895539,1.46030406,2912.9,2912.8,0.496]
[1644732895742,1.46030406,2913.0,2912.8,0.496]
[1644732896042,0.01072127,2913.1,2912.8,0.496]
[1644732896298,1.46029627,2913.0,2912.8,0.496]
[1644732896489,4.98155397,2913.6,2912.9,0.03192089]
[1644732896690,0.01072139,2913.1,2912.9,0.52792089]
[1644732896890,1.46028707,2913.0,2912.9,0.52792089]
[1644732897091,1.46028707,2913.0,2912.9,0.03192089]
[1644732898899,0.0107215,2913.1,2912.9,0.03192089]
[1644732899096,1.46028707,2913.0,2912.9,0.03192089]
[1644732900141,0.0107215,2913.1,2912.9,0.03192089]
[1644732900338,1.46028707,2913.0,2912.9,0.03192089]
[1644732901042,1.46028707,2913.0,2911.9,0.25]
[1644732901245,1.46028707,2913.0,2912.1,0.496]
[1644732901246,3.68424636,2912.9,2912.1,0.496]
[1644732901443,5.0,2912.5,2911.4,0.25]
[1644732901645,5.0,2911.9,2911.4,0.25]
[1644732901846,6.46028707,2911.8,2910.7,0.17935422]
[1644732902058,4.96028707,2911.7,2910.6,0.25]
[1644732902247,0.9037102,2910.7,2910.6,0.25]
[1644732902449,0.9037102,2910.7,2910.5,8.33855431]
[1644732902646,0.9037102,2910.7,2910.5,7.81350408]
[1644732902945,0.9037102,2910.7,2910.1,0.496]
[1644732902946,0.9037102,2910.7,2910.1,1.01455286]
[1644732903548,3.6716,2911.6,2910.1,1.01455286]
[1644732903795,1.46110774,2911.5,2910.1,1.01455286]
[1644732903992,3.38219483,2911.4,2910.1,1.01455286]
[1644732904388,0.1716,2911.9,2910.1,2.01455286]
[1644732904389,4.4084421,2911.9,2910.1,2.01455286]
[1644732904588,1.46110339,2911.8,2910.1,1.31455286]
[1644732904789,4.26011351,2911.7,2910.1,2.31455286]
[1644732904995,0.92108956,2911.0,2910.9,0.01072527]
[1644732905894,0.92108956,2911.0,2910.2,0.85873]
[1644732906094,0.92108956,2911.0,2910.2,3.27850999]
[1644732906294,0.92108956,2911.0,2910.8,0.01072533]
[1644732907093,0.92108956,2911.0,2910.2,3.27850999]
[1644732907294,0.92108956,2911.0,2910.4,0.93185028]
[1644732907546,0.1716,2911.6,2910.8,0.0107254]
[1644732907745,4.56321163,2911.9,2910.8,0.0107254]
[1644732907946,1.46109786,2911.8,2910.8,0.0107254]
[1644732908145,3.88029252,2911.7,2910.8,0.0107254]
[1644732908346,3.88029252,2911.7,2910.4,0.93185028]
[1644732908347,1.46109786,2911.6,2910.4,0.93185028]
[1644732908546,3.89212344,2911.5,2911.2,0.01072487]
[1644732908746,0.94341025,2911.4,2911.2,0.01072487]
[1644732908947,0.44301025,2911.4,2911.2,0.01072487]
[1644732909147,2.09963864,2911.3,2911.2,0.01072487]
[1644732909548,2.09963864,2911.3,2910.6,0.85866]
[1644732909746,2.09963864,2911.3,2911.1,0.01072493]
[1644732910746,2.09963864,2911.3,2910.6,0.85866]
[1644732910946,2.09963864,2911.3,2911.1,0.010725]
[1644732911591,5.39576335,2911.3,2911.1,0.010725]
[1644732911795,3.32431662,2911.2,2911.1,0.010725]
[1644732911992,4.01701662,2911.2,2910.3,1.25]